{"text_format":"1","workbook":"xlsx","n_sheets":1,"sheets":["Presupuesto Proyecto Aa"],"not_rendered":{"charts":0,"images":2,"macros":1,"external_links":0,"defined_names":5,"comments":1,"pivot_tables":0},"unopened":[],"bounds":{"document_bytes":16777216,"sheet_cells":100000,"rows_first":2000,"rows_last":500,"rows_between":2000,"halvings":0,"cell_chars":16384,"cell_head_chars":4096},"cells_cut":0,"cells_raw":0,"read":"whole","date_system":"1900"}

{"sheet":"Presupuesto Proyecto Aa","index":0,"n_rows":186,"n_cols":6,"rows_kept":186,"cut":false,"hidden":false,"merged":[]}
[null,null,null,null,null,"Documento básico 3"]
[null,null,null,null,null,"Ámbito temático \"A\": Acompañamiento y Formación"]
["Subvencions de l'Ajuntament de Barcelona per a",null,null,null,null,"Modalidad \"a\": Ayuda a la constitución, mejoras en gestión, de proyectos de innovación y nuevas líneas de negocio."]
["la promoció i reforç de l'economia social i solidària 2019",null,null,null,null,"Se deben rellenar las celdas en blanco, y añadir filas en caso que sea necesario."]
[null,null,null,null,null,"Consultar anotaciones a pie de página antes de completar los datos."]
[null,null,null,null,null," "]
[null,null,null,null,null," "]
["DATOS BÁSICOS"]
["Nombre de la persona jurídica/física",null,null,null,null,"  "]
["NIF de la persona jurídica/física"]
["Denominación del proyecto"]
["Importe total del proyecto"]
["Importe imputable a la subvención municipal"]
["% de l’Importe solicitado a la subvención municipal a cambiar en REC (Recurs Econòmic Ciutadà) "]
["Importe de l'aportació / Cofinanciación de la entidad"]
["% de l'Importe solicitado respecto al total del proyecto",{"$f":"B13/B12","v":{"$error":"#DIV/0!"}}]
["Fecha de inicio del proyecto subvencionado (dd/mm/aaaa)"]
["Fecha de fin del proyecto subvencionado (dd/mm/aaaa)"]
[]
["PREVISIÓN DE GASTOS DEL PROYECTO"]
[]
[]
["Partidas","Importe total del proyecto","Importe imputable a la subvención municipal","Importe de l'aportació / Cofinanciación de la entidad"]
["D.1  Nóminas y seguredad social IRPF (régimen general o régimen de autónomos) del personal propio vinculado al proyecto.",{"$f":"SUM(DespesesProjecte[[#This Row],[Importe imputable a la subvención municipal]],DespesesProjecte[[#This Row],[Importe de l''aportació / Cofinanciación de la entidad]])","v":0},{"$f":"SUM(C25:C29)","v":0},{"$f":"SUM(D25:D29)","v":0}]
[]
[]
[]
[]
[]
["D.2 Rendimientos anuals netos del empresario/a individual (ver 13.2 bases)",{"$f":"SUM(DespesesProjecte[[#This Row],[Importe imputable a la subvención municipal]],DespesesProjecte[[#This Row],[Importe de l''aportació / Cofinanciación de la entidad]])","v":0},{"$f":"SUM(C31:C36)","v":0},{"$f":"SUM(D31:D36)","v":0}]
[]
[]
[]
[]
[]
[]
["TOTAL DE GASTOS DE PERSONAL (Máx 20% del importe imputable a la subvención municipal)",{"$f":"SUM(B24,B30)","v":0},{"$f":"SUM(C24,C30)","v":0},{"$f":"SUM(D24,D30)","v":0}]
["D.3  Trabajos realizados por profesionales y empresas externas directamente vinculados al proyecto",{"$f":"SUM(DespesesProjecte[[#This Row],[Importe imputable a la subvención municipal]],DespesesProjecte[[#This Row],[Importe de l''aportació / Cofinanciación de la entidad]])","v":0},{"$f":"SUM(C39:C43)","v":0},{"$f":"SUM(D39:D43)","v":0}]
[]
[]
[]
[]
[]
["D.4 Alquiler de bienes muebles/inmuebles directamente vinculados al proyecto.",{"$f":"SUM(DespesesProjecte[[#This Row],[Importe imputable a la subvención municipal]],DespesesProjecte[[#This Row],[Importe de l''aportació / Cofinanciación de la entidad]])","v":0},{"$f":"SUM(C45:C49)","v":0},{"$f":"SUM(D45:D49)","v":0}]
[]
[]
[]
[]
[]
["D.5 Adquisición de materiales y bienes consumibles íntegramente imputables al proyecto.",{"$f":"SUM(DespesesProjecte[[#This Row],[Importe imputable a la subvención municipal]],DespesesProjecte[[#This Row],[Importe de l''aportació / Cofinanciación de la entidad]])","v":0},{"$f":"SUM(C51:C55)","v":0},{"$f":"SUM(D51:D55)","v":0}]
[]
[]
[]
[]
[]
["D.6 Transporte – mensajería imputables al proyecto",{"$f":"SUM(DespesesProjecte[[#This Row],[Importe imputable a la subvención municipal]],DespesesProjecte[[#This Row],[Importe de l''aportació / Cofinanciación de la entidad]])","v":0},{"$f":"SUM(C57:C61)","v":0},{"$f":"SUM(D57:D61)","v":0}]
[]
[]
[]
[]
[]
["D.7 Publicidad y propaganda de las actividades vinculadas al proyecto.",{"$f":"SUM(DespesesProjecte[[#This Row],[Importe imputable a la subvención municipal]],DespesesProjecte[[#This Row],[Importe de l''aportació / Cofinanciación de la entidad]])","v":0},{"$f":"SUM(C63:C67)","v":0},{"$f":"SUM(D63:D67)","v":0}]
[]
[]
[]
[]
[]
["D.8  Alojamiento y dietas, del personal contratado y voluntarios.",{"$f":"SUM(DespesesProjecte[[#This Row],[Importe imputable a la subvención municipal]],DespesesProjecte[[#This Row],[Importe de l''aportació / Cofinanciación de la entidad]])","v":0},{"$f":"SUM(C69:C73)","v":0},{"$f":"SUM(D69:D73)","v":0}]
[]
[]
[]
[]
[]
["D.9  Ayudas al transporte para los/las participantes de los proyectos en caso que sea necesario, de manera justificada.",{"$f":"SUM(DespesesProjecte[[#This Row],[Importe imputable a la subvención municipal]],DespesesProjecte[[#This Row],[Importe de l''aportació / Cofinanciación de la entidad]])","v":0},{"$f":"SUM(C75:C79)","v":0},{"$f":"SUM(D75:D79)","v":0}]
[]
[]
[]
[]
[]
["D.10  Viajes y desplazamientos imputables a las actividades del proyecto.",{"$f":"SUM(DespesesProjecte[[#This Row],[Importe imputable a la subvención municipal]],DespesesProjecte[[#This Row],[Importe de l''aportació / Cofinanciación de la entidad]])","v":0},{"$f":"SUM(C81:C85)","v":0},{"$f":"SUM(D81:D85)","v":0}]
[]
[]
[]
[]
[]
["D.11 Tributos, cuando sean abonados directamente por la persona jurídica o física beneficiaria.",{"$f":"SUM(DespesesProjecte[[#This Row],[Importe imputable a la subvención municipal]],DespesesProjecte[[#This Row],[Importe de l''aportació / Cofinanciación de la entidad]])","v":0},{"$f":"SUM(C87:C91)","v":0},{"$f":"SUM(D87:D91)","v":0}]
[]
[]
[]
[]
[]
["D.12  Gastos del informe de auditoria, cuando sea obligatoria su presentación por el importe de la subvención. ",{"$f":"SUM(DespesesProjecte[[#This Row],[Importe imputable a la subvención municipal]],DespesesProjecte[[#This Row],[Importe de l''aportació / Cofinanciación de la entidad]])","v":0},{"$f":"SUM(C93:C97)","v":0},{"$f":"SUM(D93:D97)","v":0}]
[]
[]
[]
[]
[]
["D.13  Otros gastos que de manera justificada y por la tipologia del proyecto puedan imputarse directamente al proyecto.",{"$f":"SUM(DespesesProjecte[[#This Row],[Importe imputable a la subvención municipal]],DespesesProjecte[[#This Row],[Importe de l''aportació / Cofinanciación de la entidad]])","v":0},{"$f":"SUM(C99:C103)","v":0},{"$f":"SUM(D99:D103)","v":0}]
[]
[]
[]
[]
[]
["TOTAL DE OTROS GASTOS DIRECTOS",{"$f":"SUM(B38,B44,B50,B56,B62,B68,B74,B80,B86,B92,B98)","v":0},{"$f":"SUM(C38,C44,C50,C56,C62,C68,C74,C80,C86,C92,C98)","v":0},{"$f":"SUM(D38,D44,D50,D56,D62,D68,D74,D80,D86,D92,D98)","v":0}]
["TOTAL GASTOS DIRECTOS (los que se identifiquen directament con el proyecto)",{"$f":"SUM(B37,B104)","v":0},{"$f":"SUM(C37,C104)","v":0},{"$f":"SUM(D37,D104)","v":0}]
["I.1 Personal de soporte al proyecto (Nóminas y seguridad social)",{"$f":"SUM(DespesesProjecte[[#This Row],[Importe imputable a la subvención municipal]],DespesesProjecte[[#This Row],[Importe de l''aportació / Cofinanciación de la entidad]])","v":0},{"$f":"SUM(C107:C111)","v":0},{"$f":"SUM(D107:D111)","v":0}]
[]
[]
[]
[]
[]
["I.2  Seguros",{"$f":"SUM(DespesesProjecte[[#This Row],[Importe imputable a la subvención municipal]],DespesesProjecte[[#This Row],[Importe de l''aportació / Cofinanciación de la entidad]])","v":0},{"$f":"SUM(C113:C117)","v":0},{"$f":"SUM(D113:D117)","v":0}]
[]
[]
[]
[]
[]
["I.3  Amortitzación",{"$f":"SUM(DespesesProjecte[[#This Row],[Importe imputable a la subvención municipal]],DespesesProjecte[[#This Row],[Importe de l''aportació / Cofinanciación de la entidad]])","v":0},{"$f":"SUM(C119:C123)","v":0},{"$f":"SUM(D119:D123)","v":0}]
[]
[]
[]
[]
[]
["I.4  Alquiler de bienes inmuebles",{"$f":"SUM(DespesesProjecte[[#This Row],[Importe imputable a la subvención municipal]],DespesesProjecte[[#This Row],[Importe de l''aportació / Cofinanciación de la entidad]])","v":0},{"$f":"SUM(C125:C129)","v":0},{"$f":"SUM(D125:D129)","v":0}]
[]
[]
[]
[]
[]
["I.5  Adquisición  de materiales y bienes consumibles parcialmente imputables al proyecto",{"$f":"SUM(DespesesProjecte[[#This Row],[Importe imputable a la subvención municipal]],DespesesProjecte[[#This Row],[Importe de l''aportació / Cofinanciación de la entidad]])","v":0},{"$f":"SUM(C131:C135)","v":0},{"$f":"SUM(D131:D135)","v":0}]
[]
[]
[]
[]
[]
["I.6  Mantenimiento de edificios i/o instalaciones",{"$f":"SUM(DespesesProjecte[[#This Row],[Importe imputable a la subvención municipal]],DespesesProjecte[[#This Row],[Importe de l''aportació / Cofinanciación de la entidad]])","v":0},{"$f":"SUM(C137:C141)","v":0},{"$f":"SUM(D137:D141)","v":0}]
[]
[]
[]
[]
[]
["I.7  Comunicaciones (teléfono, correos, conexión a internet)",{"$f":"SUM(DespesesProjecte[[#This Row],[Importe imputable a la subvención municipal]],DespesesProjecte[[#This Row],[Importe de l''aportació / Cofinanciación de la entidad]])","v":0},{"$f":"SUM(C143:C147)","v":0},{"$f":"SUM(D143:D147)","v":0}]
[]
[]
[]
[]
[]
["I.8  Gastos financieros",{"$f":"SUM(DespesesProjecte[[#This Row],[Importe imputable a la subvención municipal]],DespesesProjecte[[#This Row],[Importe de l''aportació / Cofinanciación de la entidad]])","v":0},{"$f":"SUM(C149:C153)","v":0},{"$f":"SUM(D149:D153)","v":0}]
[]
[]
[]
[]
[]
["I.9  Suministros",{"$f":"SUM(DespesesProjecte[[#This Row],[Importe imputable a la subvención municipal]],DespesesProjecte[[#This Row],[Importe de l''aportació / Cofinanciación de la entidad]])","v":0},{"$f":"SUM(C155:C159)","v":0},{"$f":"SUM(D155:D159)","v":0}]
[]
[]
[]
[]
[]
["I.10   Trabajos realizados por otras empresas, parcialmente imputables a al proyecto (limpieza, seguridad...)",{"$f":"SUM(DespesesProjecte[[#This Row],[Importe imputable a la subvención municipal]],DespesesProjecte[[#This Row],[Importe de l''aportació / Cofinanciación de la entidad]])","v":0},{"$f":"SUM(C161:C165)","v":0},{"$f":"SUM(D161:D165)","v":0}]
[]
[]
[]
[]
[]
["TOTAL GASTOS INDIRECTOS (se podran asignara la proyecto haciendo uso de un porcentaje de asignación) - Máximo 10% del importe imputable a la subvención municipal",{"$f":"SUM(B106,B112,B118,B124,B130,B136,B142,B148,B154,B160)","v":0},{"$f":"SUM(C106,C112,C118,C124,C130,C136,C142,C148,C154,C160)","v":0},{"$f":"SUM(D106,D112,D118,D124,D130,D136,D142,D148,D154,D160)","v":0}]
["TOTAL DE GASTOS PREVISTOS",{"$f":"SUM(B166,B105)","v":0},{"$f":"SUM(C166,C105)","v":0},{"$f":"SUM(D166,D105)","v":0}]
[]
[]
["1.  La cuantía de la subvención otorgada no superará el 80% del gasto total del proyecto a subvencionar. "]
["2.  El importe máximo de subvención para la modalidad \"a\" del ámbito temático de Acompañamiento y Formación (Aa) es de 7.200 €."]
["3.  En caso que la solicitud presentada sobrepase el importe máximo, se considerará como importe solicitado el máximo de lo establecido en la convocatoria. "]
["4.  Se limita a un  máximo del 20%  el importe de la subvención para gastos de personal propio que participa de forma directe y debidamente en el proyecto."]
["5.  Los gastos indirectos imputados al proyecto detallados, no podran superar el 10% del importe de la subvención. "]
["6.  Sólo con carácter excepcional, los/as empresarios/arias individuales que no tienen personas trabajadores en plantilla"]
["     podrán acreditar los trabajos mediante una declaración responsable acompañada de las declaraciones IRPF (modelo 130) del ejercicio corriente. "]
["     El precio/hora imputado al proyecto subvencionado no podrá superar la cantidad resultante de dividir los rendimeintos anuales netos del empresario/aria individual por 1800."]
["7.  El carácter subvencionable del gasto de amortización estará sujeto a las condiciones siguientes:"]
["- Que las subvenciones no hayan contribuidio a la compra de bienes."]
["- Que la amortitzación se calcula de conformidad con las normas de compatibilidad generalmente aceptadas. "]
["- Que el coste se refiera al periodo subvencionable."]
["8. En ningún caso se considerarán gastos subvencionables:"]
["- Los impuestos indirectos cuando sean susceptibles de recuperación o compensación, ni los impuestos sobre la renta. "]
["- Los gastos de inversión, incluidas las adquisiciones de bienes muebles. "]
["- Los gastos realizados con fecha anterior al inicio del proyecto y fecha posterior a la fecha de finalización del proyecto. "]
["- Otros gastos Que se indiquen en la convocatoria."]